Cogmind - Beta 13 X1 @@@ ROGUE MODE // 2023.07.08 @ 00:10:45 Player: biogoob Result: Destroyed by G-47 Trooper with Particle Gun Performance ------------- Evolutions (2) 1000 Regions Visited (4) 800 Robots Destroyed (24) 120 Value Destroyed (639) 639 Prototype IDs (0) 0 Alien Tech Used (0) 0 Bonus (0) 0 TOTAL SCORE: 2559 Bonus ------- None Cogmind --------- Core Integrity 0/550 Matter 221/300 Energy 99/100 System Corruption 1% Temperature Cool (27) Movement Core (50) Location -8/Storage Parts ------- > --- POWER (1) -------- (None) > --- PROPULSION (3) --- (None) > --- UTILITY (4) ------ (None) > --- WEAPON (3) ------- (None) > --- INVENTORY (5) ---- Light Ion Engine Reinforced Ion Engine Armored Wheel Visual Processing Unit Peak State ------------ > --- POWER ------------ Light Deuterium Engine > --- PROPULSION ------- Aluminum Leg Armored Wheel Armored Wheel > --- UTILITY ---------- Small Storage Unit Improved Targeting Computer Medium Armor Plating Medium Armor Plating > --- WEAPON ----------- Medium Laser Heavy Assault Rifle Heavy Assault Rifle > --- INVENTORY -------- Ion Engine Light Ion Engine Armored Wheel Armored Wheel Visual Processing Unit Mini Grenade Launcher [Rating: 21] Favorites ----------- Power Ion Engine Engine Ion Engine Propulsion Aluminum Leg Leg Aluminum Leg Wheel Armored Wheel Utility Small Storage Unit Device Heat Sink Storage Small Storage Unit Processor Targeting Computer Protection Medium Armor Plating Weapon Light Assault Rifle Energy Gun Medium Laser Ballistic Gun Light Assault Rifle Launcher Mini Grenade Launcher Slashing Weapon Katana Build | -11 -10 -9 -8 -8 ------- Run | Jun Mat Mat Mat Sto Slots Evolved 4 | . . 2 2 . Power . | . . . . . Propulsion 1 | . . 1 . . Utility 2 | . . . 2 . Weapon 1 | . . 1 . . Parts Attached 20 | . 1 7 12 . Power 2 | . . 1 1 . Engine 2 | . . 1 1 . Core . | . . . . . Reactor . | . . . . . Propulsion 5 | . . 2 3 . Treads . | . . . . . Leg 1 | . . . 1 . Wheel 4 | . . 2 2 . Hover . | . . . . . Flight . | . . . . . Utility 6 | . 1 1 4 . Device 1 | . . . 1 . Storage . | . . . . . Processor 2 | . 1 1 . . Hackware . | . . . . . Protection 3 | . . . 3 . Artifact . | . . . . . Weapon 7 | . . 3 4 . Energy Gun 3 | . . 1 2 . Energy Cannon . | . . . . . Ballistic Gun 2 | . . 2 . . Ballistic Cannon . | . . . . . Launcher 1 | . . . 1 . Special Weapon . | . . . . . Impact Weapon . | . . . . . Slashing Weapon 1 | . . . 1 . Piercing Weapon . | . . . . . Special Melee Weapon . | . . . . . Unidentified Prototypes . | . . . . . Parts Lost 15 | . . 2 13 . Power 1 | . . . 1 . Propulsion 4 | . . 1 3 . Utility 4 | . . . 4 . Weapon 6 | . . 1 5 . Highest Loss Streak 11 | . . 2 11 . To Critical Strikes . | . . . . . Average Slot Usage (%) 87 | . 98 99 70 . Engine 9 | . 14 11 7 . Leg 16 | . 28 19 7 . Wheel 11 | . . 13 13 . Storage 9 | . 14 11 7 . Processor 8 | . 12 11 3 . Protection 3 | . . . 10 . Energy Gun 8 | . . 11 7 . Ballistic Gun 18 | . 28 21 10 . Naked Turns 45 | . . . 24 21 Heaviest Build 36 | 12 12 18 36 . Greatest Support 24 | 20 20 20 24 3 Greatest Overweight (x) 1 | . . 1 1 . Average Overweight (x) . | . . . . . Largest Inventory Capacity 8 | 8 8 8 8 5 Average Capacity 7 | 8 8 8 7 5 Most Carried 8 | 6 8 8 8 4 Average Carried 7 | 6 6 7 6 4 Final Capacity 8 | 8 8 8 5 5 Final Carried 8 | 6 8 8 4 4 Class Distribution -------------------- 57% | Gunner 37% | Mutant 4% | Tank Dominant Class ---------------- Mutant | -10/Materials Gunner | -9/Materials Mutant | -8/Materials Mutant | -8/Storage Resources | -11 -10 -9 -8 -8 ----------- Run | Jun Mat Mat Mat Sto Matter Collected 542 | 190 . 122 230 . Remotely . | . . . . . Salvage Created 849 | 70 . 205 574 . Parts 58 | 3 . 16 39 . Haulers Intercepted . | . . . . . Recyclers Shooed . | . . . . . Parts Field Recycled . | . . . . . Retrieved Matter . | . . . . . Parts Self-Destructed . | . . . . . Prevented . | . . . . . Kills | -11 -10 -9 -8 -8 ------- Run | Jun Mat Mat Mat Sto Combat Hostiles Destroyed 16 | . . 7 9 . Melee 1 | . . . 1 . Guns 13 | . . 7 6 . AOE 2 | . . . 2 . Classes Destroyed 9 | 1 . 3 5 . Builder 4 | . . . 4 . Tunneler 1 | . . . 1 . Recycler 2 | 1 . . 1 . Watcher 1 | . . . 1 . Swarmer 4 | . . 4 . . Grunt 5 | . . 1 4 . Brawler 1 | . . . 1 . Duelist 2 | . . . 2 . Sentry 4 | . . 2 2 . Best Kill Streak 8 | 1 . 5 8 . Combat Bots Only 5 | . . 5 4 . Max Kills in Single Turn 3 | 1 . 2 3 . Gunslinging 1 | . . 1 . . Exploded 1 | . . . 1 . Melee 1 | . . . 1 . Uniques/NPCs Destroyed . | . . . . . Combat | -11 -10 -9 -8 -8 -------- Run | Jun Mat Mat Mat Sto Damage Taken 2221 | . . 477 1677 67 Core 620 | . . 63 490 67 Absorbed by Shields . | . . . . . Core Remaining (%) 94 | 100 100 84 . . Volleys Fired 64 | 4 . 16 44 . Largest 3 | 2 . 3 3 . Hottest 115 | 40 . 93 115 . Shots Fired 125 | 8 . 44 73 . Gun 118 | 8 . 44 66 . Cannon . | . . . . . Launcher 7 | . . . 7 . Special . | . . . . . Kinetic 81 | 8 . 28 45 . Thermal 37 | . . 16 21 . Explosive 7 | . . . 7 . Electromagnetic . | . . . . . Robot Hit Streak 20 | 4 . 14 20 . Robot Miss Streak 3 | 1 . 2 3 . Penetration Max . | . . . . . Secondary Targets 4 | . . 4 . . Max Gunslinging Chain 1 | . . 1 . . Shots Hit Robots 95 | 5 . 33 57 . Core Hits 51 | 2 . 12 37 . Critical Kills . | . . . . . Critical Parts Destroyed 1 | 1 . . . . Critical Strikes 5 | 1 . 2 2 . Burn 3 | . . 2 1 . Destroy 1 | 1 . . . . Sever 1 | . . . 1 . Melee Attacks 6 | . . . 6 . Impact . | . . . . . Slashing 6 | . . . 6 . Piercing . | . . . . . Sneak Attacks . | . . . . . Combat Hostiles . | . . . . . Follow-up Attacks . | . . . . . Damage Inflicted 1742 | 43 . 360 1339 . Guns 1190 | 43 . 360 787 . Cannons . | . . . . . Explosions 469 | . . . 469 . Melee 83 | . . . 83 . Ramming . | . . . . . Kinetic 810 | 43 . 197 570 . Thermal 380 | . . 163 217 . Explosive 469 | . . . 469 . Electromagnetic . | . . . . . Impact . | . . . . . Slashing 83 | . . . 83 . Piercing . | . . . . . Highest Corruption 2 | . . 2 1 1 Average Corruption 1 | . . 2 1 1 Corruption Purged . | . . . . . Corruption Blocked . | . . . . . Effects 1 | . . . 1 . Energy Discharges 1 | . . . 1 . Overload Shots . | . . . . . Overflow Damage 28 | . . . 28 . Projectiles . | . . . . . Explosions 28 | . . . 28 . Melee . | . . . . . Knockbacks . | . . . . . Impact . | . . . . . Kinetic . | . . . . . Secondary . | . . . . . Self-Inflicted Damage 61 | . . . 61 . Shots 3 | . . . 3 . Rammed 1 | . . . 1 . Targets Rammed 1 | . . . 1 . Kicked . | . . . . . Crushed . | . . . . . Highest Temperature 449 | . . 241 449 . Average Temperature 188 | . . 124 220 . Received Heat Transfer 984 | . . 156 774 54 Effects 8 | . . . 8 . Shutdowns 1 | . . . 1 . Energy Bleed 3 | . . . 3 . Interference 3 | . . . 3 . Matter Decay 1 | . . . 1 . Siege Activations . | . . . . . Robots Corrupted . | . . . . . Combat Hostiles . | . . . . . Parts Fried . | . . . . . Impact Corruptions . | . . . . . Robots Melted . | . . . . . Combat Hostiles . | . . . . . Parts Melted 3 | . . 2 1 . Heat Transferred 1332 | . . 629 703 . Parts Sabotaged . | . . . . . Parts Stolen . | . . . . . Parts Stripped . | . . . . . Power Chain Reactions . | . . . . . Missiles Intercepted . | . . . . . Alert | -11 -10 -9 -8 -8 ------- Run | Jun Mat Mat Mat Sto Peak Influence 375 | 5 18 201 375 172 Initial 157 | . 3 7 84 157 Average 132 | 1 15 122 200 167 Maximum Alert Level 1 | . . 1 1 . Low Security (%) 70 | 100 100 77 43 100 Level 1 29 | . . 22 56 . Level 2 . | . . . . . Level 3 . | . . . . . Level 4 . | . . . . . Level 5 . | . . . . . High Security . | . . . . . Max Security . | . . . . . Squads Dispatched 5 | . 1 . 3 1 Investigation . | . . . . . Extermination . | . . . . . Reinforcement 3 | . 1 . 1 1 Assault . | . . . . . Garrison 2 | . . . 2 . Intercept . | . . . . . Searches Triggered . | . . . . . Construction Impeded 1 | . . . 1 . Haulers Reinforced . | . . . . . Active Scanning Responses . | . . . . . Cargo Convoy Interrupts . | . . . . . Stealth | -11 -10 -9 -8 -8 --------- Run | Jun Mat Mat Mat Sto Distress Signals 3 | . . 1 2 . Communications Jammed . | . . . . . Distress Signals . | . . . . . Times Spotted 34 | . 1 11 20 2 Peak Tracking Total 9 | . 2 6 9 1 Tactical Retreats 2 | . . . 2 . Traps | -11 -10 -9 -8 -8 ------- Run | Jun Mat Mat Mat Sto Traps Triggered 1 | . . 1 . . Indirectly . | . . . . . Trap Hack Attempts . | . . . . . Triggered . | . . . . . Disarmed . | . . . . . Reprogrammed . | . . . . . Reused . | . . . . . Traps Extracted . | . . . . . Installed . | . . . . . Triggered . | . . . . . Machines | -11 -10 -9 -8 -8 ---------- Run | Jun Mat Mat Mat Sto Machines Disabled . | . . . . . Max in Single Turn . | . . . . . Machines Repaired . | . . . . . Machines Sabotaged . | . . . . . Overloaded Fab Kills . | . . . . . Hacking | -11 -10 -9 -8 -8 --------- Run | Jun Mat Mat Mat Sto Machines Accessed 6 | . 2 4 . . Terminals 5 | . 2 3 . . Fabricators . | . . . . . Repair Stations 1 | . . 1 . . Recycling Units . | . . . . . Scanalyzers . | . . . . . Garrison Access . | . . . . . Total Hacks 23 | . 9 14 . . Successful 7 | . 2 5 . . Failed 16 | . 7 9 . . Catastrophic 6 | . 3 3 . . Database Lockouts . | . . . . . Manual 20 | . 8 12 . . Terminals 22 | . 9 13 . . Fabricators . | . . . . . Repair Stations 1 | . . 1 . . Recycling Units . | . . . . . Scanalyzers . | . . . . . Garrison Access . | . . . . . Terminal Hacks 2 | . 1 1 . . Locate Traps 1 | . . 1 . . Zone Layout 1 | . 1 . . . Fabricator Hacks . | . . . . . Repair Station Hacks . | . . . . . Recycling Unit Hacks . | . . . . . Scanalyzer . | . . . . . Garrison Access Hacks . | . . . . . Unauthorized Hacks 5 | . 1 4 . . Terminals 4 | . 1 3 . . Botnet 4 | . 1 3 . . Fabricators . | . . . . . Repair Stations 1 | . . 1 . . Mechanics 1 | . . 1 . . Recycling Units . | . . . . . Scanalyzers . | . . . . . Garrison Access . | . . . . . Data Cores Recovered . | . . . . . Used . | . . . . . Hacking Detections 5 | . 2 3 . . Full Trace Events 2 | . 2 . . . Feedback Events . | . . . . . Feedback Blocked . | . . . . . Robot Schematics Acquired . | . . . . . Robots Built . | . . . . . Authchips . | . . . . . Time . | . . . . . Total Robot Build Rating . | . . . . . Part Schematics Acquired . | . . . . . Parts Built . | . . . . . Authchips . | . . . . . Time . | . . . . . Total Part Build Rating . | . . . . . Parts Repaired . | . . . . . Time . | . . . . . Parts Recycled . | . . . . . Recycled Matter . | . . . . . Retrieved Matter . | . . . . . Retrieved Components . | . . . . . Parts Scanalyzed . | . . . . . Part Schematics Acquired . | . . . . . Parts Damaged . | . . . . . Bothacking | -11 -10 -9 -8 -8 ------------ Run | Jun Mat Mat Mat Sto Used RIF Installer . | . . . . . Robots Hacked . | . . . . . Non-combat . | . . . . . Combat . | . . . . . Robot Hacks Applied . | . . . . . Relay Couplers Released . | . . . . . Fabnet Peak Effective % . | . . . . . Robots Rewired . | . . . . . Allies Hacked . | . . . . . Hacks Repelled . | . . . . . Allies | -11 -10 -9 -8 -8 -------- Run | Jun Mat Mat Mat Sto Total Allies . | . . . . . Largest Group . | . . . . . Highest-Rated Group . | . . . . . Highest-Rated Ally . | . . . . . Total Orders . | . . . . . Ally Attacks . | . . . . . Total Damage . | . . . . . Kills . | . . . . . Allies Corrupted . | . . . . . Allies Melted . | . . . . . Intel | -11 -10 -9 -8 -8 ------- Run | Jun Mat Mat Mat Sto Robot Analysis Total . | . . . . . Derelict Logs Recovered . | . . . . . Drone Launches . | . . . . . Drone Recoveries . | . . . . . Exploration | -11 -10 -9 -8 -8 ------------- Run | Jun Mat Mat Mat Sto Turns Passed 766 | 11 99 398 237 21 Spaces Moved 526 | 1 75 286 123 41 Core 113 | . . . 72 41 Treads . | . . . . . Legs 213 | 1 75 133 4 . Wheels 200 | . . 153 47 . Hover . | . . . . . Flight . | . . . . . Fastest Speed 50 | 120 120 105 50 50 Average Speed 99 | 120 120 111 75 50 Slowest Speed 190 | 120 120 120 190 50 Overloaded Moves . | . . . . . Propulsion Burnouts . | . . . . . Robots Hopped . | . . . . . Cave-ins Triggered . | . . . . . Exploration Rate (%) 15 | 2 21 29 15 12 Regions Visited 4 Branch Regions 1 Pre-discovered Areas . | . . . . . Known Exits Taken . | . . . . . Unknown Exits Taken 4 | 1 1 1 1 . Scrap Searched . | . . . . . Spaces Dug . | . . . . . Terrain Destroyed 56 | . . . 56 . Melee . | . . . . . Projectile . | . . . . . AOE 56 | . . . 56 . Terrain Rammed . | . . . . . Walls Destroyed . | . . . . . Machines Disabled . | . . . . . Actions | -11 -10 -9 -8 -8 --------- Run | Jun Mat Mat Mat Sto Total 649 | 4 85 331 188 41 Wait 22 | . . 20 2 . Move 522 | . 74 285 122 41 Hop . | . . . . . Pick Up 9 | . 6 2 1 . Fast Attach 6 | . 1 1 4 . Attach 9 | . . 3 6 . Detach . | . . . . . Swap 5 | . . 3 2 . Drop 5 | . 4 1 . . Fire 64 | 4 . 16 44 . Melee 6 | . . . 6 . Ram 1 | . . . 1 . Kick . | . . . . . Crush . | . . . . . Escape Stasis . | . . . . . Rewire . | . . . . . Trap . | . . . . . Miscellaneous . | . . . . . Route ------- -11/Junkyard -10/Materials -9/Materials -8/Materials -8/Storage History --------- Turn | Location | Event 12 | -11/Junkyard | Discovered new exit (range 2) 12 | -11/Junkyard | Entered Materials 101 | -10/Materials | Discovered new exit (range 9) 111 | -10/Materials | Entered another Materials area 111 | -9/Materials | Evolved 2 slots: Propulsion x1, Weapon x1 403 | -9/Materials | Build established: Gunner 464 | -9/Materials | Discovered new exit (range 16) 509 | -9/Materials | Entered another Materials area 509 | -8/Materials | Evolved 2 slots: Utility x2 558 | -8/Materials | Garrison activated, responded to threat 695 | -8/Materials | Released all parts (6) 698 | -8/Materials | Core integrity fell below 50% 721 | -8/Materials | Lost 11 parts (1p3n3u4w) 740 | -8/Materials | Discovered new exit (range 13) 742 | -8/Materials | Core integrity fell below 20% 746 | -8/Materials | Entered Storage 767 | -8/Storage | Destroyed by G-47 Trooper with Particle Gun Last Messages --------------- 00730_ U-05 Engineer lays Concrete. 00732_ U-05 Engineer builds a Wall. 00732_ U-05 Engineer lays Concrete. 00736_ U-05 Engineer destroyed. 00736_ Destroyed Welding Torch. 00736_ U-05 Engineer destroyed. 00736_ Destroyed Lgt. Deuterium Engine. 00736_ U-05 Engineer destroyed. 00738_ Mni. Grenade Launcher destroyed. 00740_ EXIT=FOUND 00742_ R-06 Scavenger destroyed. 00743_ Critical hit (Burn: +37). LOCATION=UNKNOWN GOAL=ESCAPE 00752_ O-16 Technician: "IFF HANDSHAKE FAILED. SECURING TERMINAL." 00755_ O-16 Technician uses terminal to summon reinforcements. 00755_ ALERT: Hostiles spotted, dispatching reinforcements to Terminal S002. 00755_ O-16 Technician locks terminal. 00767_ Critical hit (Burn: +37). Map ----- +----------------------------------------------------+ | | | ????????????????????????????????????????????????? | | ????????????????????????????????????????????????? | | ????????????????????????????????????????????????? | | ????????????????????????????????????????????????? | | ????????????????????????????????????????????????? | | ????????????????????????????????????????????????? | | ????????????????????????????????????????????????? | | ?????????????####???????????????????????????????? | | ?????????????"""#???????????????????????????????? | | ???????#####?"R"#???????????????????????????????? | | ???????# ##" "######??????????????????????????? | | ???????# # #??????????????????????????? | | ???????# # #??????????????????????????? | | ???????# # #??????????????????????????? | | ???????# # """ ""?????????????????????????????? | | ???????# + """ ""?????????????????????????????? | | ???????# # """ ""?????????????????????????????? | | ???????# # ????????????????????????????? | | ???????+ # ???????????????????????????? | | ???????# ##+#######???????????????????????????? | | ???????# #?????????????????????????????????? | | ???????# #???????##+##########?????????????? | | ???????# ######### ??????????????? | | ???????# #?????????????????????? | | ???????# ####### @ #?????????????????????? | | ???????+ #?????## ##?????????????????????? | | ???????# ! T??????# #??????????????????????? | | ???????# ##?????# #??????????????????????? | | ???????+ #??????# #??????????????????????? | | ???????# "T" #??????# #??????????????????????? | | ???????##+##### #??????# #??????????????????????? | | ??????????????# #??????# #??????????????????????? | | ??????????????# #??????#g#??????????????????????? | | ??????????????? #??????#/#??????????????????????? | | ??????????????? #?????? ??????????????????????? | | ??????????????? #?????? ??????????????????????? | | ??????????????? ?????? ??????????????????????? | | ??????????????? ??????? ??????????????????????? | | ??????????????? ?????? ?????????????????????? | | ??????????????? ?????? ?????????????????????? | | ?????????????????????? ?????????????????????? | | ?????????????????????? ?????????????????????? | | ?????????????????????####"T"????????????????????? | | ?????????????????????????"""????????????????????? | | ????????????????????????????????????????????????? | | ????????????????????????????????????????????????? | | ????????????????????????????????????????????????? | | ????????????????????????????????????????????????? | | ????????????????????????????????????????????????? | +----------------------------------------------------+ Best States ------------- Heat Dissipation 41 Energy Generation 14 Energy Capacity 250 Matter Stores 300 Matter Capacity 300 Sight Range 16 Terrain Scan Density 10 Armor Coverage 600 Evasion (%) 55 Targeting Accuracy 6 Item Schematics ----------------- None Robot Schematics ------------------ None Fabricated ------------ Nothing Alien Tech Used ----------------- None Achievements -------------- None Challenges ------------ None Game ------ Seed RefineryRegenerativeCharge Manual? 0 Play Time 00:09:53 Cumulative 132.8 hours Start 2023.07.07 @ 19:19:14 End 2023.07.08 @ 00:10:45 Sessions 5 Manual Loads 0 Difficulty Rogue Special Mode None Game No. 152 Rogue 129 Adventurer 19 Explorer 4 Win Type - Total 1 Types 0/0/1/0/0/0/0/0/0 Lore% 51 Gallery% 57 Achievement% 46 Wizard Run 0 Options --------- ASCII 1 Keyboard 1 Movement Vi Keybinds 0 Fullscreen 2 Font 18/Terminus Map View 76x50 Tactical HUD 1 Map Filters NONE Filters SATURATION(80) Steam X RUN: 522c26dd-6249-486a-a8a0-63ce1ce1a887